bitfinex-derivatives/quotes_SOLF0:USTF0_20240823
["timestamp","ask_amount","ask_price","bid_price","bid_amount"]
[1724409187205,3.4586,144.55,144.54,0.04587824]
[1724409187511,3.4586,144.55,144.54,5.0977737]
[1724409187710,3.4586,144.55,144.54,0.04587824]
[1724409204726,3.4586,144.56,144.54,0.04587824]
[1724409208427,3.50271141,144.57,144.54,3.50477824]
[1724409208629,0.04441141,144.57,144.55,5.05217283]
[1724409208822,0.04441141,144.57,144.54,7.49587824]
[1724409209125,0.04441141,144.57,144.56,7.45]
[1724409209325,0.04441141,144.57,144.56,12.50186256]
[1724409209826,0.04441141,144.57,144.56,7.45]
[1724409210019,0.04441141,144.57,144.56,12.49950901]
[1724409213226,0.04441141,144.57,144.56,8.83344733]
[1724409213727,0.04441141,144.57,144.56,14.57420313]
[1724409213922,0.04441141,144.57,144.56,15.95758527]
[1724409215627,0.04441141,144.57,144.56,15.95738415]
[1724409219826,0.04441141,144.57,144.56,10.9084]
[1724409220031,0.04441141,144.57,144.56,15.95586998]
[1724409220933,72.33675214,144.64,144.59,3.4575]
[1724409221130,72.33675214,144.64,144.6,5.04746998]
[1724409221331,72.33675214,144.64,144.59,10.9075]
[1724409221634,3.4569,144.63,144.6,3.66343538]
[1724409221836,3.4569,144.63,144.59,10.9075]
[1724409222129,0.0477521,144.62,144.6,3.71386398]
[1724409222332,0.0477521,144.62,144.6,0.05067558]
[1724409223231,0.0477521,144.62,144.6,3.50807558]
[1724409224832,0.0477521,144.62,144.61,10.9072]
[1724409226138,0.0477521,144.62,144.61,7.45]
[1724409227839,0.0477521,144.62,144.6,3.50797558]
[1724409231740,0.0477521,144.62,144.61,10.9072]
[1724409241238,0.0477521,144.62,144.6,3.50807558]
[1724409241539,0.0477521,144.62,144.6,10.95807558]
[1724409242347,0.0477521,144.62,144.61,3.4572]
[1724409243743,0.0477521,144.62,144.61,10.9072]
[1724409255353,0.0477521,144.62,144.6,0.05067558]
[1724409255850,3.4572,144.61,144.6,0.05067558]
[1724409261360,3.5047521,144.62,144.6,0.05067558]
[1724409269752,0.0477521,144.62,144.6,0.05067558]
[1724409271357,3.5047521,144.62,144.6,0.05067558]
[1724409275364,3.4572,144.61,144.6,0.05067558]
[1724409278263,3.4572,144.61,144.6,3.71637601]
[1724409279364,3.4572,144.61,144.6,0.05067558]
[1724409290670,4.7736,144.61,144.6,0.05067558]
[1724409291268,3.4581,144.58,144.55,3.4585]
[1724409291672,3.4581,144.58,144.56,5.05344952]
[1724409291874,3.4581,144.58,144.55,3.4585]
[1724409292072,3.4581,144.58,144.56,5.05330385]
[1724409292277,3.509664,144.58,144.56,0.04986037]
[1724409294080,3.4581,144.57,144.56,0.04986037]
[1724409300287,0.051564,144.58,144.56,0.04986037]
[1724409303186,0.051564,144.58,144.56,3.50826037]
[1724409305992,0.051564,144.58,144.56,0.04986037]
[1724409306290,3.509564,144.58,144.56,0.04986037]
[1724409310201,0.051564,144.58,144.56,0.04986037]
[1724409311199,0.051564,144.58,144.56,3.50816037]
[1724409311697,0.051564,144.58,144.57,3.66818456]
[1724409311903,0.051564,144.58,144.56,3.50816037]
[1724409312203,0.051564,144.58,144.57,3.66778187]
[1724409314999,0.051564,144.58,144.56,3.50816037]
[1724409315302,0.051564,144.58,144.57,3.66749981]
[1724409316007,0.051564,144.58,144.57,5.05080161]
[1724409318310,0.051564,144.58,144.56,3.50816037]
[1724409318503,0.051564,144.58,144.57,5.05011988]
[1724409319099,3.509464,144.58,144.57,5.05011988]
[1724409319305,0.051564,144.58,144.57,5.05011988]
[1724409321305,0.051564,144.58,144.57,8.50831988]
[1724409322108,0.051564,144.58,144.57,8.50818122]
[1724409322899,0.051564,144.58,144.57,4.8413633]
[1724409323103,0.051564,144.58,144.57,8.50765101]
[1724409324802,0.051564,144.58,144.57,4.8413633]
[1724409325108,0.051564,144.58,144.57,8.50707722]
[1724409328007,0.051564,144.58,144.57,7.12364503]
[1724409328208,0.051564,144.58,144.57,8.50678031]
[1724409330508,0.051564,144.58,144.57,8.50678625]
[1724409331612,0.051564,144.58,144.57,3.4582]
[1724409331808,0.051564,144.58,144.57,8.50558579]
[1724409332209,0.051564,144.58,144.57,4.8413422]
[1724409332507,0.051564,144.58,144.57,8.50571097]
[1724409334716,0.051564,144.58,144.57,3.4582]
[1724409335014,0.051564,144.58,144.57,8.50340893]
[1724409336918,0.051564,144.58,144.57,5.04520893]
[1724409338213,0.051564,144.58,144.57,3.66207457]
[1724409338420,0.051564,144.58,144.57,5.04527422]
[1724409340216,0.051564,144.58,144.57,8.50347422]
[1724409341121,0.051564,144.58,144.57,3.4582]
[1724409341424,0.051564,144.58,144.57,8.50206903]
[1724409341614,0.051564,144.58,144.57,7.11889156]
[1724409341822,0.051564,144.58,144.57,8.50206903]
[1724409342117,0.051564,144.58,144.57,7.11889156]
[1724409342325,0.051564,144.58,144.57,8.50207001]
[1724409343223,74.82382075,144.66,144.61,3.4571]
[1724409343413,74.82382075,144.66,144.62,5.04387001]
[1724409343615,3.4565,144.64,144.63,5.04387001]
[1724409344018,3.4565,144.64,144.63,1.38317845]
[1724409344223,3.4565,144.64,144.63,5.04020918]
[1724409345125,3.5065772,144.65,144.63,5.04020918]
[1724409345328,3.5065772,144.65,144.64,3.65703073]
[1724409345621,3.5065772,144.65,144.64,5.03969566]
[1724409345824,3.5065772,144.65,144.62,0.05047108]
[1724409346019,3.5065772,144.65,144.64,1.3826067]
[1724409346324,0.0502772,144.65,144.64,1.3826067]
[1724409346822,3.5065772,144.65,144.64,1.3826067]
[1724409347326,3.5065772,144.65,144.64,5.03832547]
[1724409347717,3.5065772,144.65,144.64,3.65571877]
[1724409348725,3.5065772,144.65,144.62,0.05047108]
[1724409349718,3.5065772,144.65,144.63,3.65702616]
[1724409350025,3.5065772,144.65,144.62,0.05047108]
[1724409350229,3.4565,144.64,144.63,1.38269404]
[1724409350624,3.4565,144.64,144.62,0.05047108]
[1724409351023,3.4565,144.64,144.63,1.38273701]
[1724409351322,3.4565,144.64,144.62,0.05047108]
[1724409351717,3.4565,144.64,144.63,3.6567437]
[1724409353428,3.4565,144.64,144.62,0.05047108]
[1724409362127,3.5066772,144.65,144.62,0.05047108]
[1724409363334,3.4566,144.64,144.62,0.05047108]
[1724409368031,3.5065772,144.65,144.62,0.05047108]
[1724409368837,0.0502772,144.65,144.62,3.50737108]
[1724409381441,0.0502772,144.65,144.63,3.4567]
[1724409382037,0.0502772,144.65,144.63,3.4566]
[1724409382242,0.0502772,144.65,144.62,3.4537535]
[1724409382935,0.0502772,144.65,144.63,3.4565]
[1724409385241,0.0502772,144.65,144.64,3.4565]
[1724409385645,0.0502772,144.65,144.64,7.10524892]
[1724409385848,0.0502772,144.65,144.64,3.4565]
[1724409386446,0.0502772,144.65,144.64,7.1050592]
[1724409387846,0.0502772,144.65,144.64,8.48752119]
[1724409388543,0.0502772,144.65,144.64,8.48750946]
[1724409389344,0.0502772,144.65,144.64,5.03100946]
[1724409390647,0.0502772,144.65,144.64,3.6485592]
[1724409390846,0.0502772,144.65,144.64,5.03066233]
[1724409391144,1.3503,144.72,144.64,5.03066233]
[1724409391347,2.6924,144.73,144.65,5.03066233]
[1724409391548,2.6924,144.73,144.66,5.03066233]
[1724409391753,3.4547,144.72,144.68,3.4555]
[1724409391952,3.4547,144.72,144.69,5.03066233]
[1724409392151,3.5008655,144.72,144.69,0.05231786]
[1724409392449,3.4548,144.71,144.69,0.05231786]
[1724409393748,0.0461655,144.72,144.69,0.05231786]
[1724409393749,3.4551,144.7,144.69,0.05231786]
[1724409394554,3.4549,144.71,144.69,0.05231786]
[1724409395453,3.4551,144.7,144.69,0.05231786]
[1724409396555,3.4549,144.71,144.69,0.05231786]
[1724409398957,4.8430655,144.72,144.69,0.05231786]
[1724409409083,1.3883655,144.72,144.69,3.50751786]
[1724409410385,0.0461655,144.72,144.7,3.455]
[1724409411380,0.0461655,144.72,144.69,3.50751786]
[1724409417587,0.0461655,144.72,144.7,3.455]
[1724409421180,0.0461655,144.72,144.69,0.05231786]
[1724409422583,0.0461655,144.72,144.69,3.50751786]
[1724409423292,0.0461655,144.72,144.69,0.05231786]
[1724409424094,0.0461655,144.72,144.69,3.50761786]
[1724409424297,0.0461655,144.72,144.69,0.05231786]
[1724409425091,0.0461655,144.72,144.69,3.50751786]
[1724409428596,0.0461655,144.72,144.7,3.455]
[1724409428898,0.0461655,144.72,144.69,0.05231786]
[1724409429097,0.0461655,144.72,144.7,3.4551]
[1724409429301,0.0461655,144.72,144.7,6.94369374]
[1724409430191,0.0461655,144.72,144.71,3.4548]
[1724409436302,0.0461655,144.72,144.71,4.83644107]
[1724409439604,0.0461655,144.72,144.71,3.4548]
[1724409439800,0.0461655,144.72,144.71,4.83641358]
[1724409442312,0.0461655,144.72,144.71,3.4548]
[1724409442504,0.0461655,144.72,144.71,4.83640555]
[1724409443009,0.0461655,144.72,144.71,3.4548]
[1724409443410,0.0461655,144.72,144.71,4.83640652]
[1724409449718,0.0461655,144.72,144.71,3.4548]
[1724409449906,0.0461655,144.72,144.71,4.83631184]
[1724409450511,0.0461655,144.72,144.71,1.38151184]
[1724409451010,0.0461655,144.72,144.69,0.05231786]
[1724409452421,3.4548,144.71,144.69,0.05231786]
[1724409454219,3.5008655,144.72,144.69,0.05231786]
[1724409454623,0.0461655,144.72,144.69,0.05231786]
[1724409456319,3.4548,144.71,144.69,0.05231786]
[1724409458418,0.0461655,144.72,144.69,0.05231786]
[1724409458821,3.455,144.7,144.69,0.05231786]
[1724409470735,6.1943,144.71,144.69,0.05231786]
[1724409472228,4.8288,144.71,144.69,0.05231786]
[1724409477238,4.8288,144.71,144.69,0.05231786]
[1724409478841,3.455,144.7,144.69,0.05231786]
[1724409479939,1.3739,144.71,144.65,3.4562]
[1724409479940,3.4555,144.68,144.65,3.4562]
[1724409480539,3.4555,144.68,144.62,3.40328242]
[1724409480540,3.4555,144.68,144.64,3.4564]
[1724409480833,1.3316,144.7,144.64,3.4564]
[1724409481135,0.04818387,144.67,144.65,0.04823735]
[1724409482333,0.04818387,144.67,144.65,3.50443735]
[1724409483530,0.04818387,144.67,144.65,0.04823735]
[1724409498639,3.50398387,144.67,144.65,0.04823735]
[1724409503048,0.04818387,144.67,144.65,0.04823735]
[1724409504454,3.50398387,144.67,144.65,0.04823735]
[1724409505555,0.04818387,144.67,144.65,0.04823735]
[1724409509046,3.50398387,144.67,144.65,0.04823735]
[1724409509254,0.04818387,144.67,144.65,0.04823735]
[1724409509950,3.456,144.66,144.65,0.04823735]
[1724409510156,0.04818387,144.67,144.65,0.04823735]
[1724409510752,3.50398387,144.67,144.65,0.04823735]
[1724409512353,0.04818387,144.67,144.65,0.04823735]
[1724409513060,0.04818387,144.67,144.66,1.38222061]
[1724409513460,0.04818387,144.67,144.66,4.83822061]
[1724409514463,0.04818387,144.67,144.66,3.456]
[1724409514761,0.04818387,144.67,144.66,4.83820704]
[1724409517858,0.04818387,144.67,144.66,4.83821568]
[1724409518257,0.04818387,144.67,144.66,1.38221568]
[1724409519762,3.50398387,144.67,144.66,1.38221568]
[1724409519957,0.04818387,144.67,144.66,1.38221568]
[1724409521168,0.04818387,144.67,144.65,0.04823735]
[1724409521366,0.04818387,144.67,144.66,1.3823484]
[1724409524367,0.04818387,144.67,144.65,0.04823735]
[1724409524671,0.04818387,144.67,144.66,1.38231925]
[1724409528266,3.50398387,144.67,144.66,1.38231925]
[1724409528869,0.04818387,144.67,144.66,1.38231925]
[1724409530359,3.50398387,144.67,144.66,1.38231925]
[1724409534177,3.50398387,144.67,144.65,0.04823735]
[1724409534471,3.50398387,144.67,144.66,1.38232643]
[1724409537776,3.50398387,144.67,144.65,0.04823735]
[1724409538078,3.50398387,144.67,144.66,1.38236337]
[1724409539178,3.50398387,144.67,144.65,0.04823735]
[1724409539476,3.50398387,144.67,144.66,1.38235511]
[1724409540677,0.04818387,144.67,144.66,1.38230394]
[1724409542876,3.50398387,144.67,144.66,1.38230394]
[1724409543176,0.04818387,144.67,144.66,1.38229665]
[1724409543378,3.50398387,144.67,144.66,1.38229665]
[1724409543979,3.456,144.66,144.65,0.04823735]
[1724409544178,3.456,144.66,144.65,1.4308322]
[1724409546180,3.456,144.66,144.65,1.43087009]
[1724409546785,3.456,144.66,144.65,0.04823735]
[1724409547082,3.456,144.66,144.65,1.43087071]
[1724409547586,0.04818387,144.67,144.56,2.6051]
[1724409547781,1.2694,144.68,144.57,1.38268319]
[1724409547983,1.2694,144.68,144.56,2.6051]
[1724409548378,3.4563,144.65,144.61,3.457]
[1724409548574,0.04899792,144.64,144.62,0.04945573]
[1724409556292,3.50549792,144.64,144.62,0.04945573]
[1724409563903,0.04899792,144.64,144.62,0.04945573]
[1724409571311,3.50559792,144.64,144.62,0.04945573]
[1724409572707,3.4567,144.63,144.62,0.04945573]
[1724409654252,3.4567,144.63,144.62,1.43241499]
[1724409655157,3.4567,144.63,144.62,5.09083795]
[1724409655758,3.4567,144.63,144.62,5.09083589]
[1724409656950,3.4567,144.63,144.62,5.09082836]
[1724409657161,3.4567,144.63,144.62,0.04945573]
[1724409657459,3.4567,144.63,144.62,5.09049081]
[1724409657661,3.4567,144.63,144.62,3.70754114]
[1724409657859,3.4567,144.63,144.62,5.09049081]
[1724409660558,3.4567,144.63,144.62,0.04945573]
[1724409660760,3.4567,144.63,144.62,5.09068812]
[1724409662155,3.4567,144.63,144.62,3.70771308]
[1724409662359,3.4567,144.63,144.62,5.09069163]
[1724409662962,3.4567,144.63,144.62,0.04945573]
[1724409663166,3.4567,144.63,144.62,5.09075201]
[1724409665963,3.4567,144.63,144.62,5.09043404]
[1724409666262,3.4567,144.63,144.62,3.70745549]
[1724409666461,3.4567,144.63,144.62,5.09043433]
[1724409666661,3.4567,144.63,144.62,1.43243457]
[1724409667168,3.4567,144.63,144.62,5.09049645]
[1724409668158,3.4567,144.63,144.62,5.0904453]
[1724409670868,3.50559792,144.64,144.62,5.0904453]
[1724409671171,3.50559792,144.64,144.63,5.04098957]
[1724409672870,3.50559792,144.64,144.63,3.65801073]
[1724409673067,3.50559792,144.64,144.63,5.04085673]
[1724409674474,3.50559792,144.64,144.63,3.65801073]
[1724409675278,6.95256431,144.64,144.63,3.65801073]
[1724409675678,3.50559792,144.64,144.63,5.04088013]
[1724409676274,3.4567,144.63,144.62,0.04945573]
[1724409676680,3.50559792,144.64,144.62,5.08954188]
[1724409676973,3.50559792,144.64,144.63,1.38280507]
[1724409677676,3.50559792,144.64,144.63,5.03972695]
[1724409682582,3.50559792,144.64,144.63,3.65692188]
[1724409682877,3.50559792,144.64,144.63,5.03972512]
[1724409685679,3.50559792,144.64,144.63,3.65692188]
[1724409685872,3.50559792,144.64,144.63,5.03972512]
[1724409686275,3.4567,144.63,144.62,0.04945573]
[1724409686484,3.4567,144.63,144.62,3.70608943]
[1724409686870,3.4567,144.63,144.62,5.08889267]
[1724409688984,3.4567,144.63,144.62,0.04945573]
[1724409689280,3.4567,144.63,144.62,5.08889819]
[1724409690478,0.04899792,144.64,144.62,5.08889819]
[1724409690683,150.70973787,144.67,144.63,5.03944246]
[1724409690985,150.70973787,144.67,144.64,5.03944246]
[1724409691185,154.16563787,144.67,144.65,5.03944246]
[1724409691377,154.16563787,144.67,144.66,3.65663922]
[1724409692281,154.16563787,144.67,144.65,0.04951539]
[1724409692486,154.16563787,144.67,144.66,3.65463509]
[1724409693187,154.16563787,144.67,144.65,0.04951539]
[1724409694682,3.456,144.66,144.65,0.04951539]
[1724409694881,3.456,144.66,144.65,5.08667943]
[1724409695377,3.456,144.66,144.65,1.43211077]
[1724409695582,3.456,144.66,144.65,5.08667942]
[1724409695779,3.456,144.66,144.65,0.04951539]
[1724409695989,3.456,144.66,144.65,1.43211061]
[1724409696586,3.456,144.66,144.65,5.08667823]
[1724409698685,154.16553787,144.67,144.65,0.04951539]
[1724409698881,154.16553787,144.67,144.65,5.08594119]
[1724409699179,154.16553787,144.67,144.65,0.04951539]
[1724409701091,154.16553787,144.67,144.66,3.65216049]
[1724409701890,154.16553787,144.67,144.65,0.04951539]
[1724409702497,150.70973787,144.67,144.66,3.65194665]
[1724409705103,150.70973787,144.67,144.65,3.50571539]
[1724409705299,150.70973787,144.67,144.66,3.65173773]
[1724409705591,150.70973787,144.67,144.65,3.50571539]
[1724409705592,150.70973787,144.67,144.65,0.04951539]
[1724409705800,150.70973787,144.67,144.66,3.65174767]
[1724409706193,150.70973787,144.67,144.65,0.04951539]
[1724409706598,150.70973787,144.67,144.66,3.65162223]
[1724409707194,150.70973787,144.67,144.65,0.04951539]
[1724409707395,150.70973787,144.67,144.66,3.65157053]
[1724409707595,154.16553787,144.67,144.66,3.65157053]
[1724409707899,154.16553787,144.67,144.66,5.03392572]
[1724409708200,154.16553787,144.67,144.66,3.65157053]
[1724409708500,154.16553787,144.67,144.65,0.04951539]
[1724409708691,154.16553787,144.67,144.66,3.65106958]
[1724409708890,154.16553787,144.67,144.66,5.0334029]
[1724409709090,154.16553787,144.67,144.66,3.65106958]
[1724409711701,154.16553787,144.67,144.65,0.04951539]
[1724409711896,154.16553787,144.67,144.66,3.65112685]
[1724409714802,154.16553787,144.67,144.65,0.04951539]
[1724409715005,154.16553787,144.67,144.66,3.65112565]
[1724409715201,154.16553787,144.67,144.65,0.04951539]
[1724409715602,3.456,144.66,144.65,0.04951539]
[1724409716502,3.456,144.66,144.65,3.70159287]
[1724409717406,3.456,144.66,144.65,0.04951539]
[1724409717996,3.456,144.66,144.65,3.70135832]
[1724409718205,3.456,144.66,144.65,0.04951539]
[1724409718707,154.16563787,144.67,144.65,3.70132664]
[1724409718901,154.16563787,144.67,144.65,0.04951539]
[1724409720000,3.456,144.66,144.65,0.04951539]
[1724409720399,3.456,144.66,144.65,3.70108758]
[1724409720610,154.16563787,144.67,144.65,3.70108758]
[1724409720808,154.16563787,144.67,144.65,0.04951539]
[1724409734113,3.456,144.66,144.65,0.04951539]
[1724409738716,3.4566,144.64,144.61,3.4571]
[1724409738917,3.4566,144.64,144.62,5.03460216]
[1724409739122,3.4566,144.64,144.63,5.03460216]
[1724409739920,3.4566,144.64,144.63,3.65193963]
[1724409740121,3.4566,144.64,144.62,0.04389936]
[1724409740621,3.4567,144.63,144.62,0.04389936]
[1724409747428,4.7549,144.63,144.62,0.04389936]
[1724409747724,3.4572,144.61,144.58,3.4578]
[1724409748021,3.4572,144.61,144.59,5.03730625]
[1724409748224,3.4572,144.61,144.58,3.4578]
[1724409748225,3.4574,144.6,144.54,112.20400948]
[1724409748428,3.4574,144.6,144.55,5.03780438]
[1724409748627,0.05290393,144.59,144.56,3.50346164]
[1724409748821,0.05290393,144.59,144.56,7.15838952]
[1724409749025,0.05290393,144.59,144.57,5.03795077]
[1724409749222,0.05290393,144.59,144.58,5.03795077]
[1724409749532,3.51060393,144.59,144.58,5.03795077]
[1724409750534,3.51060393,144.59,144.58,3.65492788]
[1724409751333,3.51060393,144.59,144.57,3.65492788]
[1724409751529,3.51060393,144.59,144.58,3.65492788]
[1724409751835,3.51060393,144.59,144.57,3.65492788]
[1724409752037,3.51060393,144.59,144.58,3.65492788]
[1724409752425,3.51060393,144.59,144.56,3.50346164]
[1724409752837,3.51060393,144.59,144.57,5.03944183]
[1724409753036,3.51060393,144.59,144.57,3.65629562]
[1724409753330,3.51060393,144.59,144.58,3.65629562]
[1724409753531,3.51060393,144.59,144.57,3.65629562]
[1724409753734,3.51060393,144.59,144.58,3.65629562]
[1724409754436,3.51060393,144.59,144.56,3.50346164]
[1724409754641,3.51060393,144.59,144.57,5.03937571]
[1724409754831,3.51060393,144.59,144.56,3.50346164]
[1724409755139,3.51060393,144.59,144.57,5.03937571]
[1724409755439,3.51060393,144.59,144.56,3.50346164]
[1724409755736,3.51060393,144.59,144.57,5.03937571]
[1724409756035,3.51060393,144.59,144.56,3.50346164]
[1724409756538,3.51060393,144.59,144.57,1.38313891]
[1724409756731,3.51060393,144.59,144.57,3.65619175]
[1724409756930,3.51060393,144.59,144.56,3.50346164]
[1724409757131,3.51060393,144.59,144.57,5.03934367]
[1724409757332,3.51060393,144.59,144.56,3.50346164]
[1724409757532,3.51060393,144.59,144.57,5.03937571]
[1724409757836,3.51060393,144.59,144.56,3.50346164]
[1724409758035,3.51060393,144.59,144.57,5.039345]
[1724409758235,3.51060393,144.59,144.56,3.50346164]
[1724409758438,3.51060393,144.59,144.57,3.65620981]
[1724409758628,3.51060393,144.59,144.56,3.50346164]
[1724409758829,3.51060393,144.59,144.57,3.65626754]
[1724409759028,3.51060393,144.59,144.56,3.50346164]
[1724409759232,3.51060393,144.59,144.57,3.65626754]
[1724409759431,3.51060393,144.59,144.56,3.50346164]
[1724409759829,3.51060393,144.59,144.57,3.65623263]
[1724409760040,3.51060393,144.59,144.56,3.50346164]
[1724409760242,3.51060393,144.59,144.57,3.65623263]
[1724409760440,3.51060393,144.59,144.56,3.50346164]
[1724409760738,3.51060393,144.59,144.57,3.65624059]
[1724409760938,3.51060393,144.59,144.56,3.50346164]
[1724409761138,3.51060393,144.59,144.57,3.65624055]
[1724409761342,3.51060393,144.59,144.56,3.50346164]
[1724409761535,3.51060393,144.59,144.57,3.65626751]
[1724409761840,3.51060393,144.59,144.56,0.04526164]
[1724409762039,3.51060393,144.59,144.57,3.65623905]
[1724409762333,0.05290393,144.59,144.56,0.04526164]
[1724409763433,3.4579,144.58,144.56,0.04526164]
[1724409764036,3.4582,144.57,144.56,0.04526164]
[1724409764741,3.458,144.58,144.56,0.04526164]
[1724409766949,0.05290393,144.59,144.56,0.04526164]
[1724409768448,0.05290393,144.59,144.57,3.458]
[1724409769244,0.05290393,144.59,144.56,3.50356164]
[1724409769846,3.51060393,144.59,144.56,3.50356164]
[1724409770049,3.51060393,144.59,144.56,0.04526164]
[1724409771652,3.4581,144.58,144.56,0.04526164]
[1724409773749,3.4579,144.58,144.56,0.04526164]
[1724409795568,0.05290393,144.59,144.56,0.04526164]
[1724409795569,3.4582,144.57,144.56,0.04526164]
[1724409802074,3.4582,144.57,144.56,3.70259785]
[1724409802280,3.4582,144.57,144.56,0.04526164]
[1724409802675,3.4582,144.57,144.56,3.70277215]
[1724409802877,3.4582,144.57,144.56,0.04526164]
[1724409803177,3.4582,144.57,144.56,3.70277215]
[1724409805368,3.4582,144.57,144.56,5.08613314]
[1724409805777,3.4582,144.57,144.56,0.04526164]
[1724409805978,3.4582,144.57,144.56,5.08718459]
[1724409806280,3.4582,144.57,144.56,5.08718556]
[1724409809576,3.4582,144.57,144.56,1.42862404]
[1724409809778,3.4582,144.57,144.56,5.08815143]
[1724409810576,3.4582,144.57,144.56,3.70478903]
[1724409812379,3.4582,144.57,144.56,0.04526164]
[1724409812574,3.4582,144.57,144.56,3.70604673]
[1724409813385,3.4582,144.57,144.56,0.04526164]
[1724409813579,3.4582,144.57,144.56,3.70611029]
[1724409815678,3.4582,144.57,144.56,0.04526164]
[1724409815878,3.4582,144.57,144.56,3.70609015]
[1724409817986,3.4582,144.57,144.56,0.04526164]
[1724409818181,4.0876,144.58,144.47,1.388]
[1724409818484,4.0876,144.58,144.48,8.5522103]
[1724409818681,4.0876,144.58,144.49,8.50537169]
[1724409818979,3.4593,144.53,144.5,5.04537169]
[1724409819182,0.05249381,144.53,144.51,1.38359983]
[1724409819486,0.05249381,144.53,144.52,5.04587575]
[1724409819877,0.05249381,144.53,144.52,1.38359983]
[1724409820078,0.05249381,144.53,144.52,5.04586776]
[1724409820886,3.51159381,144.53,144.52,5.04586776]
[1724409821990,0.05249381,144.53,144.52,5.04586776]
[1724409823888,3.51159381,144.53,144.52,5.04586776]
[1724409825088,3.51159381,144.53,144.52,3.66226793]
[1724409825291,3.51159381,144.53,144.52,5.04590595]
[1724409828389,3.51159381,144.53,144.52,5.04578591]
[1724409828885,3.51159381,144.53,144.52,5.04576503]
[1724409831592,3.51159381,144.53,144.5,3.50495761]
[1724409831788,3.51159381,144.53,144.51,5.04615424]
[1724409832086,3.51159381,144.53,144.52,5.04615424]
[1724409833489,3.51159381,144.53,144.5,3.50495761]
[1724409833989,3.51159381,144.53,144.51,5.0461277]
[1724409834188,3.51159381,144.53,144.52,5.0461277]
[1724409835089,3.51159381,144.53,144.52,1.38363021]
[1724409835395,3.51159381,144.53,144.52,5.04637059]
[1724409837891,3.51159381,144.53,144.5,0.04515761]
[1724409838084,3.51159381,144.53,144.52,1.38362912]
[1724409838288,3.51159381,144.53,144.52,5.04566872]
[1724409838491,3.51159381,144.53,144.52,1.38362912]
[1724409838794,3.51159381,144.53,144.52,5.04566713]
[1724409840195,3.51159381,144.53,144.52,1.38362912]
[1724409840494,3.51159381,144.53,144.52,5.04559889]
[1724409840890,3.51159381,144.53,144.52,1.38362912]
[1724409841096,3.51159381,144.53,144.52,5.04557972]
[1724409843699,0.05249381,144.53,144.52,5.04557972]
[1724409844000,0.05249381,144.53,144.52,5.04542859]
[1724409845198,1.3661,144.58,144.52,5.04542859]
[1724409845395,3.4582,144.57,144.53,8.50442859]
[1724409845700,3.4582,144.57,144.54,5.04542859]
[1724409845901,3.4582,144.57,144.55,5.04542859]
[1724409846200,3.51138691,144.57,144.56,3.66179859]
[1724409847101,3.51138691,144.57,144.55,0.05227826]
[1724409847303,3.51138691,144.57,144.56,3.65868498]
[1724409847502,3.51138691,144.57,144.55,0.05227826]
[1724409847701,3.51138691,144.57,144.56,3.65865385]
[1724409848605,3.51138691,144.57,144.55,0.05227826]
[1724409849800,3.4584,144.56,144.55,0.05227826]
[1724409850304,3.4584,144.56,144.55,3.71171706]
[1724409851705,3.4584,144.56,144.55,5.09515267]
[1724409853202,3.51138691,144.57,144.55,5.09515267]
[1724409853408,3.51138691,144.57,144.56,5.04287441]
[1724409853906,3.51138691,144.57,144.55,0.05227826]
[1724409854104,3.51138691,144.57,144.56,5.04192858]
[1724409854513,0.05318691,144.57,144.56,5.04192858]
[1724409855803,0.05318691,144.57,144.56,3.65855921]
[1724409856003,0.05318691,144.57,144.56,5.04192078]
[1724409857408,0.05318691,144.57,144.55,0.05227826]
[1724409857613,0.05318691,144.57,144.56,5.04180584]
[1724409857908,0.05318691,144.57,144.55,0.05227826]
[1724409858105,0.05318691,144.57,144.56,5.04183677]
[1724409858709,0.05318691,144.57,144.56,1.38336266]
[1724409858910,0.05318691,144.57,144.56,5.04150624]
[1724409864314,0.05318691,144.57,144.56,1.38336266]
[1724409864510,0.05318691,144.57,144.56,5.0413659]
[1724409867709,0.05318691,144.57,144.56,1.38336266]
[1724409867911,0.05318691,144.57,144.56,5.04132944]
[1724409868414,0.05318691,144.57,144.56,5.04128416]
[1724409870016,0.05318691,144.57,144.56,5.04106521]
[1724409871017,0.05318691,144.57,144.55,3.51087826]
[1724409871214,0.05318691,144.57,144.56,5.04102254]
[1724409874325,0.05318691,144.57,144.56,3.65772593]
[1724409874524,0.05318691,144.57,144.56,5.04102337]
[1724409875021,0.05318691,144.57,144.56,5.04102309]
[1724409876423,0.05318691,144.57,144.56,5.04081969]
[1724409877722,0.05318691,144.57,144.56,5.04080819]
[1724409877926,0.05318691,144.57,144.56,1.38331118]
[1724409878123,0.05318691,144.57,144.56,5.04081038]
[1724409878624,0.05318691,144.57,144.56,1.38331815]
[1724409878922,0.05318691,144.57,144.56,5.04086242]
[1724409879424,3.51138691,144.57,144.56,5.04086242]